bitfinex/quotes_SOLUSD_20260211
["timestamp","ask_amount","ask_price","bid_price","bid_amount"]
[1770838025547,3.22263193,80.019,79.98,12.86331902]
[1770838026550,3.22263193,80.017,79.981,12.50296945]
[1770838027634,3.22263193,80.009,79.973,47.66]
[1770838028150,3.22263193,80.009,79.973,60.1641414]
[1770838028355,3.22263193,80.009,79.98,12.86331902]
[1770838028549,3.22263193,80.007,79.973,60.1641414]
[1770838029738,12.86331902,80.01,79.973,47.66]
[1770838029739,3.22263193,80.005,79.973,47.66]
[1770838029938,3.22263193,79.999,79.964,47.7]
[1770838030250,3.22263193,79.989,79.964,47.7]
[1770838030752,3.22263193,79.989,79.951,12.50766094]
[1770838032449,3.22263193,79.987,79.951,12.50766094]
[1770838032852,3.22263193,79.987,79.96,12.86331902]
[1770838033039,3.22263193,79.987,79.951,12.50766094]
[1770838033233,3.22263193,79.987,79.951,43.77681329]
[1770838033433,3.22263193,79.987,79.96,12.86331902]
[1770838033640,3.22263193,79.987,79.97,12.86331902]
[1770838034455,12.86331902,80.01,79.97,12.86331902]
[1770838034456,12.49990287,80.001,79.98,12.86331902]
[1770838034658,3.22263193,80.0,79.971,47.74]
[1770838034864,3.22263193,79.999,79.971,47.74]
[1770838035651,12.5003125,79.998,79.971,47.74]
[1770838035956,3.22263193,79.997,79.971,47.74]
[1770838036150,43.75109376,79.998,79.95,12.88647394]
[1770838036151,3.22263193,79.989,79.95,12.88647394]
[1770838036556,3.22263193,79.979,79.948,47.74]
[1770838036764,3.22263193,79.959,79.93,12.88647394]
[1770838037358,3.22263193,79.949,79.92,0.1]
[1770838037773,3.22263193,79.947,79.92,0.1]
[1770838039156,30.0,79.945,79.92,0.1]
[1770838039352,3.22263193,79.944,79.92,0.1]
[1770838039873,12.5089126,79.943,79.92,12.98647394]
[1770838040163,3.22263193,79.944,79.92,12.98647394]
[1770838040350,30.0,79.933,79.92,12.98647394]
[1770838040971,54.8,79.959,79.92,12.98647394]
[1770838041164,3.23302688,79.959,79.93,12.88647394]
[1770838041365,3.23302688,79.958,79.92,12.98647394]
[1770838041565,3.23302688,79.958,79.921,47.76]
[1770838042567,3.23302688,79.956,79.922,12.51219939]
[1770838042949,30.0,79.93,79.922,12.51219939]
[1770838043776,3.23302688,79.949,79.922,12.51219939]
[1770838044078,3.23302688,79.949,79.93,12.88647394]
[1770838044276,3.23302688,79.96,79.93,12.88647394]
[1770838044772,54.82,79.967,79.93,12.88647394]
[1770838044773,3.23302688,79.964,79.931,12.51079055]
[1770838045164,3.23302688,79.959,79.92,12.98647394]
[1770838045374,3.23302688,79.959,79.93,47.82]
[1770838045678,3.23302688,79.959,79.922,12.51217949]
[1770838045982,3.23302688,79.949,79.92,0.1]
[1770838046576,3.23302688,79.939,79.911,47.84]
[1770838046771,3.23302688,79.93,79.901,47.82]
[1770838046951,3.23302688,79.93,79.901,60.33548791]
[1770838047772,3.23302688,79.927,79.901,60.33548791]
[1770838048974,30.0,79.923,79.901,60.33548791]
[1770838049366,3.23302688,79.922,79.901,60.33548791]
[1770838049754,30.0,79.92,79.901,60.33548791]
[1770838050675,30.0,79.92,79.901,91.6242077]
[1770838051072,3.23302688,79.931,79.901,91.6242077]
[1770838051467,12.50844319,79.946,79.92,12.88647394]
[1770838051778,3.23302688,79.945,79.92,12.88647394]
[1770838052482,3.23302688,79.954,79.93,12.88647394]
[1770838052672,12.88647394,79.97,79.919,12.5125162]
[1770838052673,3.23302688,79.979,79.94,12.88647394]
[1770838053069,3.23302688,79.979,79.931,47.94]
[1770838054175,3.23302688,79.979,79.94,12.88647394]
[1770838055171,3.23302688,79.977,79.941,12.50922555]
[1770838055487,3.23302688,79.977,79.95,12.88647394]
[1770838055786,3.23302688,79.977,79.941,60.42922555]
[1770838056482,12.50375112,79.976,79.941,60.42922555]
[1770838056789,3.23302688,79.975,79.941,60.42922555]
[1770838057667,3.23302688,79.975,79.95,12.88647394]
[1770838058678,12.50406382,79.974,79.95,12.88647394]
[1770838059585,3.23302688,79.975,79.951,12.50766094]
[1770838060167,12.50406382,79.974,79.951,12.50766094]
[1770838060367,12.50406382,79.974,79.95,12.88647394]
[1770838060666,3.23302688,79.973,79.941,47.92]
[1770838060870,3.23302688,79.973,79.882,50.0732641]
[1770838060871,3.23302688,79.969,79.931,12.51079055]
[1770838062685,3.23302688,79.967,79.926,12.51142846]
[1770838062989,3.23302688,79.967,79.93,12.88647394]
[1770838065972,43.76860164,79.966,79.93,12.88647394]
[1770838066169,3.23302688,79.965,79.93,12.88647394]
[1770838068290,12.50562753,79.964,79.931,12.51079055]
[1770838068497,3.23302688,79.963,79.931,12.51079055]
[1770838069087,3.23302688,79.963,79.93,12.88647394]
[1770838069987,3.23302688,79.963,79.925,47.98]
[1770838070296,3.23302688,79.961,79.93,12.88647394]
[1770838072474,3.23302688,79.959,79.925,60.49172641]
[1770838072676,3.23302688,79.959,79.93,12.88647394]
[1770838073495,3.23302688,79.959,79.925,60.49172641]
[1770838073694,3.23302688,79.949,79.925,47.98]
[1770838073995,3.23302688,79.949,79.917,12.51288866]
[1770838074797,3.23302688,79.947,79.911,12.51392173]
[1770838076281,3.23302688,79.939,79.91,48.06]
[1770838076490,3.23302688,79.939,79.91,4.81691148]
[1770838076998,3.23302688,79.937,79.91,4.81691148]
[1770838077176,30.0,79.933,79.911,12.51392173]
[1770838077801,33.23302688,79.933,79.91,4.81691148]
[1770838079804,15.74366091,79.932,79.91,4.81691148]
[1770838080006,30.0,79.929,79.91,4.81691148]
[1770838080185,3.23302688,79.928,79.91,4.81691148]
[1770838081003,30.0,79.925,79.91,4.81691148]
[1770838081388,30.0,79.925,79.88,4.91691148]
[1770838081389,3.23302688,79.924,79.89,4.81691148]
[1770838081691,3.23302688,79.919,79.882,48.12]
[1770838081893,3.23302688,79.917,79.883,12.51830802]
[1770838082092,3.23302688,79.917,79.89,4.81691148]
[1770838082407,3.23302688,79.951,79.91,4.81691148]
[1770838082609,3.23302688,79.951,79.92,4.81691148]
[1770838085004,3.23302688,79.949,79.92,12.90025244]
[1770838085604,3.23302688,79.955,79.93,12.90025244]
[1770838085793,3.23302688,79.954,79.93,12.90025244]
[1770838086309,3.23302688,79.954,79.92,12.90025244]
[1770838087007,3.23302688,79.952,79.93,12.90025244]
[1770838087705,3.23302688,79.952,79.921,48.1]
[1770838087889,3.23302688,79.952,79.92,12.90025244]
[1770838089011,3.23302688,79.949,79.918,48.1]
[1770838089307,3.23302688,79.949,79.92,12.90025244]
[1770838092214,3.23302688,79.947,79.918,48.1]
[1770838093285,31.26837016,79.953,79.92,12.90025244]
[1770838093286,12.50736935,79.953,79.92,12.90025244]
[1770838093498,12.50662712,79.958,79.93,12.90025244]
[1770838093694,3.23302688,79.957,79.93,12.90025244]
[1770838094406,3.23302688,79.957,79.931,12.51079055]
[1770838094719,12.50687878,79.956,79.931,12.51079055]
[1770838094910,15.73990566,79.956,79.931,12.51079055]
[1770838096120,3.23302688,79.955,79.931,12.51079055]
[1770838096994,3.23302688,79.953,79.93,12.89612798]
[1770838099120,3.23302688,79.951,79.924,12.51179909]
[1770838099292,3.23302688,79.951,79.924,60.73179909]
[1770838099493,3.23302688,79.951,79.93,12.89612798]
[1770838101019,3.23302688,79.951,79.92,12.89612798]
[1770838101202,3.23302688,79.951,79.93,12.89612798]
[1770838101828,3.23302688,79.949,79.922,48.24]
[1770838104000,3.23302688,79.947,79.922,60.75209447]
[1770838104314,3.23302688,79.947,79.922,48.24]
[1770838105330,3.23302688,79.929,79.89,4.81718031]
[1770838105621,3.23302688,79.929,79.9,4.81718031]
[1770838106516,3.23302688,79.927,79.9,4.81718031]
[1770838106716,30.0,79.931,79.91,4.81718031]
[1770838106923,3.23302688,79.93,79.91,4.81718031]
[1770838108936,3.23302688,79.93,79.911,12.51392173]
[1770838109141,3.23302688,79.928,79.881,12.51862144]
[1770838109423,3.23302688,79.909,79.88,0.1]
[1770838110828,3.23302688,79.899,79.87,0.1]
[1770838112022,3.23302688,79.899,79.85,12.62342082]
[1770838112331,3.13302688,79.869,79.85,0.1]
[1770838112509,3.13302688,79.867,79.84,0.1]
[1770838112821,3.12651351,79.847,79.814,12.52913022]
[1770838113022,3.12651351,79.839,79.801,12.53117128]
[1770838113230,3.12651351,79.837,79.802,0.4573914]
[1770838113412,3.12651351,79.851,79.821,0.4573914]
[1770838113610,3.12651351,79.85,79.82,12.93779695]
[1770838114228,3.12651351,79.869,79.83,13.39030101]
[1770838114536,3.12651351,79.876,79.85,12.93779695]
[1770838115031,3.12651351,79.874,79.842,12.52473635]
[1770838116225,3.12651351,79.872,79.842,12.52473635]
[1770838116724,3.12651351,79.872,79.84,12.93779695]
[1770838117120,3.12651351,79.859,79.82,12.93779695]
[1770838117427,3.12651351,79.857,79.814,3.04068466]
[1770838117623,3.12651351,79.849,79.814,3.04068466]
[1770838117822,3.12651351,79.849,79.81,12.93779695]
[1770838118135,3.12651351,79.849,79.811,3.04068466]
[1770838118435,3.12651351,79.847,79.813,3.04068466]
[1770838119634,3.12651351,79.847,79.812,12.52944419]
[1770838120740,3.12651351,79.829,79.801,12.53117128]
[1770838120935,30.0,79.846,79.821,3.04068466]
[1770838121236,3.12651351,79.851,79.83,12.93779695]
[1770838121438,12.52348152,79.85,79.83,12.93779695]
[1770838121736,12.52348152,79.85,79.821,3.04068466]
[1770838121930,3.12651351,79.849,79.821,3.04068466]
[1770838122131,3.12651351,79.849,79.81,12.93779695]
[1770838122333,55.28,79.848,79.81,12.93779695]
[1770838122548,3.12651351,79.847,79.81,12.93779695]
[1770838122844,15.65077927,79.845,79.811,15.57027642]
[1770838123022,15.65077927,79.845,79.812,3.04068466]
[1770838123530,12.93779695,79.84,79.806,12.53034634]
[1770838124136,55.3,79.839,79.806,12.53034634]
[1770838124318,55.3,79.839,79.8,13.03779695]
[1770838124927,43.83877351,79.838,79.8,0.1]
[1770838125115,43.83877351,79.838,79.8,13.03779695]
[1770838125623,43.83877351,79.838,79.801,3.04068466]
[1770838125839,43.83877351,79.838,79.8,13.03779695]
[1770838125840,12.52536386,79.838,79.8,13.03779695]
[1770838126042,12.93779695,79.83,79.8,0.1]
[1770838126247,12.93779695,79.83,79.79,0.1]
[1770838126539,55.34,79.829,79.79,0.1]
[1770838127036,12.93779695,79.82,79.78,0.1]
[1770838127614,3.12651351,79.819,79.78,0.1]
[1770838127843,3.12651351,79.819,79.781,3.04068466]
[1770838128140,58.48651351,79.818,79.791,3.04068466]
[1770838128339,3.12651351,79.817,79.791,3.04068466]
[1770838128538,43.8448144,79.827,79.791,3.04068466]
[1770838128745,3.12651351,79.825,79.791,3.04068466]
[1770838129439,12.52756063,79.824,79.792,12.53258472]
[1770838129646,3.12651351,79.823,79.793,3.04068466]
[1770838130227,3.12651351,79.823,79.781,3.04068466]
[1770838130460,3.12651351,79.819,79.791,3.04068466]
[1770838130963,3.12651351,79.819,79.781,12.53431268]
[1770838131170,3.01103115,79.817,79.78,13.03779695]
[1770838131364,3.01103115,79.817,79.78,0.1]
[1770838131575,3.01103115,79.815,79.78,0.1]
[1770838131957,3.01103115,79.809,79.78,0.1]
[1770838132154,3.01103115,79.799,79.749,3.09133054]
[1770838132469,3.01103115,79.799,79.74,0.2]
[1770838132470,3.01103115,79.789,79.75,12.63909073]
[1770838132655,3.01103115,79.789,79.753,12.53862885]
[1770838132973,3.01103115,79.787,79.761,3.09133054]
[1770838133153,3.01103115,79.787,79.76,0.1]
[1770838133353,3.01103115,79.787,79.75,13.03779695]
[1770838133354,3.01103115,79.769,79.75,0.1]
[1770838133653,3.01103115,79.769,79.74,0.2]
[1770838133654,3.01103115,79.765,79.74,0.2]
[1770838134672,3.01103115,79.765,79.74,13.13779695]
[1770838134979,55.48,79.77,79.741,3.09133054]
[1770838135181,58.49103115,79.777,79.75,12.93779695]
[1770838135470,15.54612942,79.776,79.75,16.02912749]
[1770838135981,3.01103115,79.794,79.761,3.09133054]
[1770838136151,33.01103115,79.788,79.751,43.88659702]
[1770838136351,3.01103115,79.787,79.754,3.09133054]
[1770838136751,3.01103115,79.787,79.76,12.93779695]
[1770838137980,3.01103115,79.787,79.761,12.53745564]
[1770838138170,3.01103115,79.787,79.762,3.09133054]
[1770838138360,3.01103115,79.786,79.761,12.53745564]
[1770838139974,12.53346659,79.787,79.74,0.2]
[1770838139975,3.01103115,79.779,79.74,0.2]
[1770838140162,3.01103115,79.779,79.74,25.67843804]
[1770838140471,3.01103115,79.779,79.741,3.09133054]
[1770838140670,3.01103115,79.779,79.751,3.09133054]
[1770838140869,3.01103115,79.779,79.76,12.93779695]
[1770838141559,3.01103115,79.779,79.75,12.93779695]
[1770838141757,3.01103115,79.779,79.75,16.02912749]
[1770838142552,3.01103115,79.777,79.751,12.53902772]
[1770838142758,3.01103115,79.777,79.741,12.54057814]
[1770838143180,3.01103115,79.777,79.74,13.13779695]
[1770838143466,3.01103115,79.777,79.741,12.54060019]
[1770838143867,3.01103115,79.777,79.74,0.2]
[1770838144178,3.01103115,79.759,79.73,0.1]
[1770838144473,3.01103115,79.775,79.741,12.54060019]
[1770838144781,3.01103115,79.773,79.742,3.09133054]
[1770838144958,3.01103115,79.773,79.73,0.1]
[1770838145164,3.01103115,79.769,79.73,13.03779695]
[1770838145365,3.01103115,79.769,79.731,15.63350359]
[1770838146873,3.01103115,79.767,79.731,12.54217305]
[1770838147076,3.01103115,79.759,79.73,0.1]
[1770838147268,3.01103115,79.749,79.72,0.2438579]
[1770838147582,3.01103115,79.739,79.71,0.1]
[1770838147759,3.01103115,79.739,79.711,12.54531996]
[1770838147960,30.0,79.747,79.712,3.09133054]
[1770838147961,3.01103115,79.746,79.712,3.09133054]
[1770838148377,3.01103115,79.746,79.71,13.03779695]
[1770838148378,3.01103115,79.746,79.71,0.1]
[1770838148580,3.01103115,79.744,79.71,0.1]
[1770838148779,55.64,79.745,79.72,12.93779695]
[1770838148976,55.64,79.745,79.721,3.09133054]
[1770838149556,3.01103115,79.744,79.712,43.90806904]
[1770838149779,3.01103115,79.744,79.72,12.93779695]
[1770838150276,3.01103115,79.743,79.713,3.09133054]
[1770838150583,55.64,79.745,79.721,3.09133054]
[1770838150964,3.01103115,79.76,79.731,3.09133054]
[1770838151167,3.01103115,79.758,79.73,12.93779695]
[1770838151964,3.01103115,79.758,79.731,3.09133054]
[1770838152380,58.67103115,79.763,79.731,3.09133054]
[1770838152578,3.01103115,79.762,79.731,3.09133054]
[1770838153268,3.01103115,79.762,79.733,3.09133054]
[1770838153775,3.01103115,79.769,79.741,3.09133054]
[1770838154086,50.10400213,79.834,79.732,12.54201575]
[1770838154087,3.01103115,79.777,79.75,12.93779695]
[1770838154284,3.01103115,79.777,79.75,16.02912749]
[1770838154801,3.01103115,79.789,79.751,3.09133054]
[1770838155099,3.01103115,79.788,79.751,3.09133054]
[1770838155483,3.01103115,79.786,79.753,3.09133054]
[1770838155992,31.32749844,79.803,79.752,43.88604673]
[1770838155993,3.01103115,79.805,79.78,12.93779695]
[1770838156200,3.01103115,79.803,79.78,12.93779695]
[1770838156713,3.01103115,79.803,79.781,3.09133054]
[1770838156905,3.01103115,79.803,79.78,12.94575365]
[1770838157103,3.01103115,79.813,79.781,3.09133054]
[1770838157478,3.01103115,79.811,79.78,12.94575365]
[1770838157871,3.01103115,79.809,79.781,12.53431268]
[1770838158999,3.01103115,79.809,79.781,15.62564322]
[1770838159174,3.01103115,79.809,79.781,12.53431268]
[1770838159375,3.01103115,79.809,79.77,12.94575365]
[1770838159585,3.01103115,79.809,79.771,3.09133054]
[1770838160097,3.01103115,79.807,79.78,12.94575365]
[1770838161628,3.01103115,79.807,79.772,15.43007701]
[1770838162110,3.01103115,79.807,79.78,12.94575365]
[1770838162314,3.04906065,79.813,79.782,2.89435019]
[1770838162496,3.04906065,79.812,79.782,2.89435019]
[1770838162805,3.04906065,79.812,79.781,12.53431268]
[1770838163288,3.04906065,79.812,79.781,15.42866287]
[1770838164709,3.04906065,79.81,79.781,12.53431268]
[1770838165009,3.04906065,79.81,79.777,12.53484332]
[1770838165491,3.04906065,79.809,79.777,12.53484332]
[1770838166504,3.04906065,79.809,79.755,47.96]
[1770838166505,3.04906065,79.808,79.78,12.94575365]
[1770838166692,3.04906065,79.808,79.79,12.94575365]
[1770838167505,3.04906065,79.808,79.781,2.89435019]
[1770838167810,2.93048898,79.818,79.781,2.89435019]
[1770838168898,2.93048898,79.816,79.79,12.94575365]
[1770838169321,12.94575365,79.83,79.782,12.53415557]
[1770838169322,6.53515815,79.83,79.801,2.96497822]
[1770838169523,2.93048898,79.828,79.783,2.96497822]
[1770838169814,2.93048898,79.819,79.78,12.94575365]
[1770838170014,2.93048898,79.819,79.782,2.96497822]
[1770838170508,2.93048898,79.819,79.781,12.53431268]
[1770838170710,2.93048898,79.819,79.79,12.94575365]
[1770838170912,55.76,79.837,79.781,2.96497822]
[1770838170913,2.93048898,79.817,79.781,2.96497822]
[1770838171110,2.93048898,79.817,79.783,2.96497822]
[1770838171687,2.93048898,79.817,79.79,12.94575365]
[1770838172499,2.93048898,79.817,79.789,2.96497822]
[1770838173322,2.93048898,79.815,79.79,25.4786525]
[1770838173605,2.93048898,79.815,79.78,12.94575365]
[1770838173812,2.93048898,79.815,79.781,12.53431268]
[1770838174513,2.93048898,79.799,79.762,2.96497822]
[1770838174702,2.93048898,79.789,79.751,2.96497822]
[1770838175516,15.46361828,79.789,79.761,2.96497822]
[1770838176210,2.93048898,79.788,79.761,2.96497822]
[1770838177116,2.93048898,79.788,79.76,4.83541559]
[1770838177311,2.93048898,79.788,79.734,38.18]
[1770838177312,2.93048898,79.779,79.738,2.96497822]
[1770838177495,2.93048898,79.769,79.738,2.96497822]
[1770838177892,55.76,79.776,79.701,2.96497822]
[1770838177893,2.93048898,79.749,79.701,2.96497822]
[1770838178096,2.93048898,79.755,79.721,2.96497822]
[1770838178615,4.61729252,79.777,79.711,43.90861988]
[1770838178616,2.93048898,79.783,79.731,2.96497822]
[1770838178814,2.93048898,79.763,79.731,2.96497822]
[1770838179006,2.93048898,79.763,79.74,4.83541559]
[1770838179400,12.53729846,79.762,79.739,2.96497822]
[1770838179994,2.93048898,79.763,79.74,4.83541559]
[1770838180219,12.53729846,79.762,79.739,2.96497822]
[1770838181097,2.93048898,79.761,79.731,2.96497822]
[1770838181296,15.46810181,79.76,79.731,2.96497822]
[1770838181496,15.46810181,79.76,79.733,2.96497822]
[1770838182603,2.93048898,79.759,79.733,2.96497822]
[1770838183518,2.93048898,79.757,79.733,2.96497822]
[1770838184706,15.46773774,79.763,79.734,2.96497822]
[1770838185105,12.53724876,79.763,79.734,2.96497822]
[1770838185313,2.93048898,79.762,79.735,12.54154386]
[1770838185517,58.71048898,79.769,79.741,2.96497822]
[1770838185705,2.93048898,79.768,79.741,2.96497822]
[1770838186018,2.93048898,79.768,79.72,4.83541559]
[1770838186019,2.93048898,79.749,79.714,2.96497822]
[1770838186224,2.93048898,79.749,79.707,2.96497822]
[1770838186527,2.93048898,79.749,79.711,2.96497822]
[1770838186723,2.93048898,79.739,79.708,12.54570443]
[1770838187210,2.93048898,79.739,79.704,15.5113911]
[1770838187820,2.93048898,79.729,79.694,12.54798445]
[1770838188022,2.93048898,79.728,79.694,12.54798445]
[1770838188330,2.93048898,79.728,79.695,2.96497822]
[1770838189214,2.93048898,79.728,79.689,31.37169365]
[1770838189215,2.93048898,79.709,79.676,2.96497822]
[1770838189925,2.93048898,79.709,79.676,12.55083086]
[1770838189926,2.93048898,79.708,79.676,12.55083086]
[1770838190315,2.93048898,79.708,79.676,15.51580908]
[1770838190627,2.93048898,79.708,79.677,2.90889658]
[1770838192306,2.89956656,79.706,79.678,12.55051582]
[1770838193223,2.89956656,79.699,79.67,3.00889658]
[1770838193807,2.89956656,79.699,79.67,0.1]
[1770838194716,2.89956656,79.698,79.672,12.55132257]
[1770838194930,2.89956656,79.698,79.675,19.64344621]
[1770838195312,2.89956656,79.698,79.675,7.09254821]
[1770838195513,2.89956656,79.706,79.677,2.90889658]
[1770838196311,55.82,79.712,79.677,2.90889658]
[1770838196630,2.89956656,79.711,79.683,2.90889658]
[1770838198432,2.89956656,79.71,79.683,2.90889658]
[1770838198635,2.89956656,79.708,79.683,2.90889658]
[1770838198838,2.89956656,79.708,79.677,12.55058568]
[1770838199934,2.89956656,79.708,79.678,2.90889658]
[1770838200527,2.89956656,79.699,79.675,7.09254821]
[1770838200732,2.89956656,79.687,79.67,0.1]
[1770838200928,2.89956656,79.703,79.671,2.90889658]
[1770838202034,6.54495209,79.714,79.69,12.98248672]
[1770838202342,2.89956656,79.722,79.691,2.90889658]
[1770838202827,2.89956656,79.722,79.692,12.54831099]
[1770838203142,2.89956656,79.72,79.693,2.90889658]
[1770838203321,2.89956656,79.719,79.693,2.90889658]
[1770838203939,2.89956656,79.719,79.688,15.45782654]
[1770838204837,2.89956656,79.719,79.689,2.90889658]
[1770838205134,12.54350987,79.723,79.691,2.90889658]
[1770838205437,2.89956656,79.719,79.69,12.54862592]
[1770838205636,2.89956656,79.719,79.691,2.90889658]
[1770838206732,15.44205423,79.729,79.693,2.90889658]
[1770838207036,2.89956656,79.728,79.693,2.90889658]
[1770838208627,2.89956656,79.719,79.693,2.90889658]
[1770838210836,12.54421836,79.718,79.693,2.90889658]
[1770838211028,31.35700578,79.727,79.695,2.90889658]
[1770838211223,2.89956656,79.726,79.695,2.90889658]
[1770838212428,2.89956656,79.725,79.695,2.90889658]
[1770838212937,2.89956656,79.709,79.664,2.90889658]
[1770838213124,4.84389094,79.7,79.672,2.90889658]
[1770838213326,2.89956656,79.699,79.672,2.90889658]
[1770838215241,2.89956656,79.697,79.665,2.90889658]
[1770838215441,15.44626644,79.703,79.672,2.90889658]
[1770838215743,2.89956656,79.702,79.672,2.90889658]
[1770838216347,2.89956656,79.679,79.649,12.5550426]
[1770838216647,2.89956656,79.679,79.649,2.90889658]
[1770838217149,2.89956656,79.667,79.64,15.56535307]
[1770838217350,2.89956656,79.667,79.64,3.00889658]
[1770838217544,2.89956656,79.667,79.64,0.1]
[1770838218253,2.89956656,79.649,79.591,2.90889658]
[1770838218562,2.89956656,79.649,79.59,11.50391119]
[1770838218563,6.5478,79.631,79.611,2.90889658]
[1770838218725,2.89956656,79.629,79.591,2.90889658]
[1770838218930,2.89956656,79.619,79.59,0.1]
[1770838219125,2.89956656,79.619,79.57,13.11008268]
[1770838219126,2.89956656,79.607,79.57,0.1]
[1770838219429,2.89956656,79.599,79.57,12.66754144]
[1770838219630,2.89956656,79.599,79.57,0.1]
[1770838219956,12.56040544,79.616,79.581,2.90889658]
[1770838220251,2.89956656,79.615,79.581,2.90889658]
[1770838221155,31.39425642,79.633,79.591,3.08436837]
[1770838221329,12.55808112,79.63,79.601,3.08436837]
[1770838221527,2.93302639,79.629,79.589,3.08436837]
[1770838221748,2.93302639,79.609,79.574,3.08436837]
[1770838222847,13.01008268,79.6,79.571,3.08436837]
[1770838223154,2.93302639,79.607,79.572,3.08436837]
[1770838223655,2.93302639,79.599,79.572,3.08436837]
[1770838224455,0.20270166,79.571,79.57,0.1]
[1770838225149,2.93302639,79.57,79.536,1.64794164]
[1770838225331,0.20270166,79.571,79.55,13.01008268]
[1770838225530,2.93302639,79.57,79.541,1.89179954]
[1770838226038,2.93302639,79.57,79.55,13.01008268]
[1770838226356,3.13572805,79.571,79.541,1.89179954]
[1770838226653,2.93302639,79.569,79.53,12.57384675]
[1770838226842,2.93302639,79.568,79.541,1.90291422]
[1770838227238,2.90719995,79.566,79.533,1.90833831]
[1770838227647,2.90719995,79.559,79.523,1.91370468]
[1770838227844,2.90719995,79.549,79.511,12.57687615]
[1770838228051,2.90719995,79.549,79.512,1.91370468]
[1770838228359,43.98808551,79.567,79.476,4.05304642]
[1770838228360,2.90719995,79.516,79.476,4.05304642]
[1770838228543,4.61729252,79.517,79.345,75.61828478]
[1770838228544,2.90719995,79.487,79.404,12.59382398]
[1770838228748,13.01008268,79.46,79.42,13.01008268]
[1770838229060,2.90719995,79.449,79.421,12.59112829]
[1770838229233,2.90719995,79.461,79.42,13.01008268]
[1770838229440,2.90719995,79.46,79.43,13.01008268]
[1770838229654,2.90719995,79.475,79.44,13.01008268]
[1770838229841,19.13850693,79.476,79.41,12.59273971]
[1770838229842,2.90719995,79.469,79.43,13.01008268]
[1770838230041,2.90719995,79.449,79.41,13.01008268]
[1770838230537,19.13850693,79.476,79.441,2.21866669]
[1770838230734,22.04570688,79.476,79.441,2.21866669]
[1770838231037,2.90719995,79.475,79.442,12.5877999]
[1770838231238,2.90719995,79.469,79.43,12.58965048]
[1770838231437,2.90719995,79.469,79.43,13.01008268]
[1770838231653,2.90719995,79.469,79.44,13.01008268]
[1770838231956,2.90719995,79.459,79.43,13.01008268]
[1770838232146,2.90719995,79.469,79.44,13.01008268]
[1770838232456,2.90719995,79.469,79.43,2.22835655]
[1770838232457,2.90719995,79.469,79.43,15.23843923]
[1770838232957,2.90719995,79.439,79.403,0.2438579]
[1770838233136,12.58669083,79.449,79.404,30.0]
[1770838233137,2.90719995,79.429,79.404,30.0]
[1770838233337,2.90719995,79.419,79.404,30.0]
[1770838233565,2.90719995,79.439,79.41,13.01008268]
[1770838233758,15.49389078,79.449,79.42,13.01008268]
[1770838233948,2.90719995,79.448,79.42,13.01008268]
[1770838234153,2.90719995,79.448,79.404,60.77382398]
[1770838234456,2.90719995,79.439,79.41,13.01008268]
[1770838234840,31.46254902,79.46,79.404,60.77382398]
[1770838234841,2.90719995,79.463,79.43,13.01008268]
[1770838235037,2.90719995,79.476,79.431,12.58954312]
[1770838235261,2.90719995,79.469,79.431,12.58954312]
[1770838235646,2.90719995,79.459,79.42,61.23008268]
[1770838235844,2.90719995,79.459,79.43,13.01008268]
[1770838236341,2.90719995,79.459,79.421,2.26603886]
[1770838236548,2.90719995,79.459,79.43,13.01008268]
[1770838236962,2.90719995,79.457,79.43,13.01008268]
[1770838237163,2.90719995,79.457,79.42,61.23008268]
[1770838237364,2.90719995,79.449,79.42,48.22]
[1770838237661,2.90719995,79.439,79.402,12.5940735]
[1770838237856,2.90719995,79.439,79.41,13.01008268]
[1770838238043,2.90719995,79.439,79.404,12.59382398]
[1770838238441,2.90719995,79.439,79.41,13.01008268]
[1770838238661,44.04842809,79.458,79.43,13.01008268]
[1770838238662,2.90719995,79.451,79.43,13.01008268]
[1770838238962,2.90719995,79.479,79.44,13.01008268]
[1770838239284,2.90719995,79.477,79.44,13.01008268]
[1770838239438,2.90719995,79.477,79.441,12.58795835]
[1770838239840,2.90719995,79.469,79.426,12.59033565]
[1770838240155,2.90719995,79.469,79.44,13.01008268]
[1770838240665,44.03734366,79.478,79.426,44.06617479]
[1770838240666,2.90719995,79.487,79.46,13.01008268]
[1770838240860,12.58059268,79.488,79.46,15.32087647]
[1770838241162,12.57924927,79.496,79.46,15.32087647]
[1770838241467,2.90719995,79.495,79.46,6.45798545]
[1770838241866,2.90719995,79.495,79.46,13.01008268]
[1770838242980,2.90719995,79.495,79.453,48.28]
[1770838243155,2.90719995,79.495,79.46,13.01008268]
[1770838243350,2.90719995,79.493,79.454,12.58589875]
[1770838243546,2.90719995,79.493,79.453,48.28]
[1770838243758,2.90719995,79.479,79.453,48.28]
[1770838244270,2.90719995,79.479,79.45,13.01008268]
[1770838244472,2.90719995,79.491,79.46,13.01008268]
[1770838245050,2.90719995,79.491,79.455,48.26]
[1770838245263,2.90719995,79.489,79.455,48.26]